Cogmind - Beta 15 @@@ ROGUE MODE // 2025.05.12 @ 22:39:35 Player: MTF Result: Destroyed by G-34 Mercenary with Small Laser Performance ------------- Evolutions (0) 0 Regions Visited (2) 400 Robots Destroyed (27) 135 Value Destroyed (740) 740 Prototype IDs (11) 220 Alien Tech Used (0) 0 Bonus (0) 0 TOTAL SCORE: 1495 Bonus ------- None Cogmind --------- Core Integrity 0/250 Matter 237/300 Energy 250/250 System Corruption 0% Temperature Cool (6) Movement Treading (260) Ox1 Location -10/Subcaves Parts ------- > --- POWER (1) -------- Ion Engine > --- PROPULSION (2) --- Spiked Treads Spiked Treads > --- UTILITY (2) ------ High-capacity Storage Unit Seismic Detector > --- WEAPON (2) ------- Mining Laser Makeshift Sword > --- INVENTORY (20) --- Light Ion Engine Light Treads Disposable Heat Sink High-capacity Battery (250) Medium Matter Pod (100) High-capacity Matter Pod (0) Structural Scanner Scrap Shield Rainbow Chip Subdweller Laser Subdweller Laser Subdweller Laser Subdweller Machine Gun Subdweller Machine Gun Subdweller Machine Gun Grenade Launcher Grenade Launcher Subdweller Shrapnel Launcher Subdweller Shrapnel Launcher Peak State ------------ > --- POWER ------------ Ion Engine > --- PROPULSION ------- Spiked Treads Spiked Treads > --- UTILITY ---------- High-capacity Storage Unit Structural Scanner > --- WEAPON ----------- Subdweller Machine Gun Makeshift Sword > --- INVENTORY -------- Light Ion Engine Light Treads Disposable Heat Sink High-capacity Battery Medium Matter Pod High-capacity Matter Pod Seismic Detector Scrap Shield Rainbow Chip Subdweller Laser Subdweller Laser Subdweller Laser Subdweller Machine Gun Subdweller Machine Gun Grenade Launcher Grenade Launcher Subdweller Shrapnel Launcher Subdweller Shrapnel Launcher Mining Laser [Rating: 17] Favorites ----------- Power Ion Engine Engine Ion Engine Propulsion Light Treads Treads Light Treads Leg Aluminum Leg Utility High-capacity Storage Unit Device Seismic Detector Storage High-capacity Storage Unit Protection Light Armor Plating Weapon Subdweller Machine Gun Energy Gun Subdweller Laser Ballistic Gun Subdweller Machine Gun Launcher Grenade Launcher Special Weapon Mining Laser Slashing Weapon Makeshift Sword Build | -11 -10 -10 ------- Run | Yrd Mat Sub Slots Evolved . | . . . Power . | . . . Propulsion . | . . . Utility . | . . . Weapon . | . . . Parts Attached 30 | 3 11 16 Power 1 | . . 1 Engine 1 | . . 1 Core . | . . . Reactor . | . . . Propulsion 6 | 2 . 4 Treads 6 | 2 . 4 Leg . | . . . Wheel . | . . . Hover . | . . . Flight . | . . . Utility 9 | 1 6 2 Device 5 | 1 3 1 Storage 2 | . 2 . Processor . | . . . Hackware . | . . . Protection 2 | . 1 1 Artifact . | . . . Weapon 14 | . 5 9 Energy Gun 6 | . 4 2 Energy Cannon . | . . . Ballistic Gun 3 | . . 3 Ballistic Cannon . | . . . Launcher 3 | . 1 2 Special Weapon 1 | . . 1 Impact Weapon . | . . . Slashing Weapon 1 | . . 1 Piercing Weapon . | . . . Special Melee Weapon . | . . . Unidentified Prototypes . | . . . Parts Lost 3 | . 1 2 Power . | . . . Propulsion 1 | . . 1 Utility 1 | . . 1 Weapon 1 | . 1 . Highest Loss Streak 1 | . 1 1 To Critical Strikes . | . . . Average Backups 17 | 4 11 18 Power 1 | 1 1 1 Propulsion 2 | 2 3 2 Utility 5 | . 4 6 Weapon 7 | 1 2 9 Tool/Special . | . . . Unused Backups 22 | . 2 20 Power 2 | . . 2 Propulsion 6 | . 1 5 Utility 8 | . 1 7 Weapon 6 | . . 6 Tool/Special . | . . . Average Slot Usage (%) 99 | . 100 99 Engine 14 | . 14 14 Treads 27 | . 28 27 Device 12 | . 8 13 Storage 13 | . 14 13 Protection 1 | . 5 . Energy Gun 11 | . 27 8 Ballistic Gun 7 | . . 8 Launcher 2 | . . 3 Special Weapon 6 | . . 7 Peak Build Rating 17 | 7 9 17 Average Rating 11 | 6 7 12 On Entrance 7 | 6 7 9 Naked Turns . | . . . Heaviest Build 57 | 11 50 57 Greatest Support 40 | 40 40 40 Greatest Overweight (x) 1 | . 1 1 Average Overweight (x) . | . . . Largest Inventory Capacity 20 | 8 20 20 Average Capacity 18 | 8 13 19 Most Carried 20 | 6 20 20 Average Carried 18 | 4 11 19 Final Capacity 20 | 8 20 20 Final Carried 20 | 4 20 20 Class Distribution -------------------- 99% | Mutant Dominant Class ---------------- Mutant | -10/Materials Mutant | -10/Subcaves Resources | -11 -10 -10 ----------- Run | Yrd Mat Sub Matter Collected 971 | 216 272 483 Remotely . | . . . Salvage Created 830 | 90 333 407 Parts 49 | 8 16 25 Haulers Intercepted 2 | . 2 . Recyclers Shooed . | . . . Parts Field Recycled . | . . . Retrieved Matter . | . . . Parts Self-Destructed 3 | . . 3 Prevented . | . . . Kills | -11 -10 -10 ------- Run | Yrd Mat Sub Combat Hostiles Destroyed 19 | . 7 12 Guns 11 | . 4 7 AOE 8 | . 3 5 Classes Destroyed 8 | 2 5 1 Worker 1 | . 1 . Tunneler 3 | 2 1 . Hauler 2 | . 2 . Recycler 1 | 1 . . Watcher 1 | . 1 . Swarmer 3 | . 3 . Grunt 4 | . 4 . Subdweller 12 | . . 12 Best Kill Streak 3 | 2 3 2 Combat Bots Only 3 | . 3 2 Max Kills in Single Turn 2 | 1 1 2 Gunslinging . | . . . Exploded 2 | . 1 2 Melee . | . . . Uniques/NPCs Destroyed . | . . . Combat | -11 -10 -10 -------- Run | Yrd Mat Sub Hostile Shots Fired 101 | . 35 66 Missed 16 | . 2 14 Hits 85 | . 33 52 Projectile 85 | . 33 52 Critical Strikes 2 | . . 2 Damage Taken 1473 | . 392 1081 Core 255 | . 68 187 Absorbed by Shields . | . . . Core Remaining (%) 100 | 100 . . Volleys Fired 102 | 7 45 50 Largest 2 | 2 2 2 Hottest 120 | 80 105 120 Shots Fired 186 | 14 86 86 Gun 165 | 14 82 69 Cannon . | . . . Launcher 11 | . 4 7 Special 10 | . . 10 Kinetic 41 | . . 41 Thermal 132 | 14 77 41 Explosive 8 | . 4 4 Electromagnetic 5 | . 5 . Robot Hit Streak 15 | 11 15 14 Robot Miss Streak 2 | 1 2 1 Penetration Max . | . . . Secondary Targets 4 | . 2 2 Max Gunslinging Chain 1 | . 1 1 Shots Hit Robots 124 | 11 54 59 Core Hits 54 | 6 24 24 Critical Kills 2 | . . 2 Critical Parts Destroyed . | . . . Critical Strikes 3 | . . 3 Destroy 3 | . . 3 Melee Attacks 2 | . . 2 Impact . | . . . Slashing 2 | . . 2 Piercing . | . . . Sneak Attacks . | . . . Combat Hostiles . | . . . Follow-up Attacks . | . . . Damage Inflicted 2580 | 137 846 1597 Guns 1945 | 121 645 1179 Cannons . | . . . Explosions 610 | . 192 418 Melee . | . . . Ramming 25 | 16 9 . Kinetic 935 | . . 935 Thermal 1228 | 121 593 514 Explosive 340 | . 192 148 Electromagnetic 52 | . 52 . Impact . | . . . Slashing . | . . . Piercing . | . . . Highest Corruption . | . . . Average Corruption . | . . . Corruption Purged . | . . . Corruption Blocked . | . . . Overload Shots . | . . . Overflow Damage 13 | . 13 . Projectiles . | . . . Explosions 13 | . 13 . Melee . | . . . Knockbacks . | . . . Impact . | . . . Kinetic . | . . . Secondary . | . . . Self-Inflicted Damage 16 | . . 16 Shots 1 | . . 1 Rammed 10 | 6 4 . Targets Rammed 10 | 6 4 . Kicked . | . . . Crushed . | . . . Highest Temperature 244 | 72 244 48 Average Temperature 74 | 34 92 30 Received Heat Transfer 342 | . 198 144 Effects 2 | . 2 . Interference 2 | . 2 . Siege Activations . | . . . Martial Activations . | . . . Shielding Activations . | . . . Robots Disrupted . | . . . Combat Hostiles . | . . . Robots Corrupted . | . . . Combat Hostiles . | . . . Parts Fried . | . . . Impact Corruptions . | . . . Robots Melted . | . . . Combat Hostiles . | . . . Parts Melted 2 | . 2 . Heat Transferred 2261 | 275 1361 625 Parts Sabotaged . | . . . Parts Stolen . | . . . Parts Stripped . | . . . Power Chain Reactions . | . . . Alert | -11 -10 -10 ------- Run | Yrd Mat Sub Maximum Alert Level . | . . . Low Security (%) 100 | 100 100 . Level 1 . | . . . Level 2 . | . . . Level 3 . | . . . Level 4 . | . . . Level 5 . | . . . High Security . | . . . Max Security . | . . . Peak Influence 100 | 5 100 . Initial . | . . . Average 8 | 1 9 . Influence Increases 289 | 15 274 . Destroy 0b10 Robot/C 140 | . 140 . Destroy 0b10 Robot/NC 40 | 15 25 . Destroy Leader 36 | . 36 . Successful Hack 13 | . 13 . Select Force Hacks 30 | . 30 . Disable Machine 30 | . 30 . Influence Decreases 289 | 15 192 82 Entered New Map 40 | . . 40 Time Decay 239 | 15 182 42 Lost Part 10 | . 10 . Squads Dispatched 1 | . 1 . Investigation 1 | . 1 . Extermination . | . . . Reinforcement . | . . . Assault . | . . . Garrison . | . . . Intercept . | . . . Searches Triggered . | . . . Construction Impeded . | . . . Haulers Reinforced . | . . . Active Scanning Responses . | . . . Cargo Convoy Interrupts . | . . . Stealth | -11 -10 -10 --------- Run | Yrd Mat Sub Distress Signals 1 | . 1 . Communications Jammed . | . . . Distress Signals . | . . . Times Spotted 27 | . 15 12 Peak Tracking Total 3 | . 3 2 Tactical Retreats . | . . . Traps | -11 -10 -10 ------- Run | Yrd Mat Sub Traps Triggered 1 | . 1 . Indirectly . | . . . Trap Hack Attempts . | . . . Triggered . | . . . Disarmed . | . . . Reprogrammed . | . . . Reused . | . . . Traps Extracted . | . . . Installed . | . . . Triggered . | . . . Machines | -11 -10 -10 ---------- Run | Yrd Mat Sub Machines Disabled 3 | . 2 1 Max in Single Turn 1 | . 1 1 Machines Repaired . | . . . Machines Dismantled . | . . . Machines Sabotaged . | . . . Overloaded Fab Kills . | . . . Hacking | -11 -10 -10 --------- Run | Yrd Mat Sub Machines Accessed 9 | . 8 1 Terminals 5 | . 5 . Fabricators . | . . . Repair Stations 1 | . 1 . Recycling Units 2 | . 2 . Scanalyzers . | . . . Garrison Access . | . . . Total Hacks 17 | . 16 1 Successful 7 | . 6 1 Failed 10 | . 10 . Catastrophic 1 | . 1 . Database Lockouts . | . . . Manual 9 | . 9 . Terminals 9 | . 9 . Fabricators . | . . . Repair Stations 1 | . 1 . Recycling Units 6 | . 6 . Scanalyzers . | . . . Garrison Access . | . . . Terminal Hacks 6 | . 5 1 Terminal Index 1 | . 1 . Recall Investigation 1 | . 1 . Hauler Manifests 1 | . 1 . Registered Components 1 | . 1 . Zone Layout 1 | . 1 . Proto ID Catalog 1 | . . 1 Fabricator Hacks . | . . . Repair Station Hacks . | . . . Recycling Unit Hacks . | . . . Scanalyzer . | . . . Garrison Access Hacks . | . . . Unauthorized Hacks 1 | . 1 . Terminals . | . . . Fabricators . | . . . Repair Stations . | . . . Recycling Units 1 | . 1 . Tunnel 1 | . 1 . Scanalyzers . | . . . Garrison Access . | . . . Data Cores Recovered . | . . . Used . | . . . Hacking Detections 6 | . 6 . Full Trace Events 1 | . 1 . Feedback Events . | . . . Feedback Blocked . | . . . Robot Schematics Acquired . | . . . Robots Built . | . . . Authchips . | . . . Time . | . . . Total Robot Build Rating . | . . . Part Schematics Acquired . | . . . Parts Built . | . . . Authchips . | . . . Time . | . . . Total Part Build Rating . | . . . Parts Repaired . | . . . Time . | . . . Parts Recycled . | . . . Recycled Matter . | . . . Retrieved Matter . | . . . Retrieved Components . | . . . Parts Scanalyzed . | . . . Part Schematics Acquired . | . . . Parts Damaged . | . . . Bothacking | -11 -10 -10 ------------ Run | Yrd Mat Sub Used RIF Installer . | . . . Robots Hacked . | . . . Non-combat . | . . . Combat . | . . . Robot Hacks Applied . | . . . Relay Couplers Released . | . . . Fabnet Peak Effective % . | . . . Robots Rewired . | . . . Allies Hacked . | . . . Hacks Repelled . | . . . Allies | -11 -10 -10 -------- Run | Yrd Mat Sub Total Allies . | . . . Largest Group . | . . . Highest-Rated Group . | . . . Highest-Rated Ally . | . . . Total Orders . | . . . Ally Attacks . | . . . Total Damage . | . . . Kills . | . . . Allies Corrupted . | . . . Allies Melted . | . . . Intel | -11 -10 -10 ------- Run | Yrd Mat Sub Active Infowar (turns) 5897 | 18 657 5222 Structural 1145 | . 107 1038 Seismic 4752 | 18 550 4184 Robot Analysis Total . | . . . Derelict Logs Recovered 3 | . . 3 Drone Launches . | . . . Drone Recoveries . | . . . Exploration | -11 -10 -10 ------------- Run | Yrd Mat Sub Turns Passed 6546 | 105 1142 5299 Spaces Moved 2409 | 47 450 1912 Core . | . . . Treads 2395 | 33 450 1912 Legs 14 | 14 . . Wheels . | . . . Hover . | . . . Flight . | . . . Fastest Speed 120 | 120 160 160 Average Speed 235 | 148 180 251 Slowest Speed 260 | 160 240 260 Overloaded Moves . | . . . Propulsion Burnouts . | . . . Robots Hopped . | . . . Potential Cave-ins . | . . . Cave-ins Triggered . | . . . Exploration Rate (%) 50 | 5 59 86 Regions Visited 2 Branch Regions 1 Pre-discovered Areas 1 | . 1 . Known Exits Taken . | . . . Unknown Exits Taken 2 | 1 1 . Scrap Searched 10 | . . 10 Spaces Dug 2 | . . 2 Terrain Destroyed 62 | . . 62 Melee 2 | . . 2 Projectile 1 | . . 1 AOE 59 | . . 59 Terrain Rammed . | . . . Walls Destroyed . | . . . Machines Disabled . | . . . Actions | -11 -10 -10 --------- Run | Yrd Mat Sub Total 3048 | 64 686 2298 Wait 388 | . 152 236 Move 2408 | 47 449 1912 Hop . | . . . Pick Up 51 | . 17 34 Fast Attach 6 | 1 1 4 Attach 8 | . 1 7 Detach 1 | . . 1 Swap 42 | 2 13 27 Drop 31 | 2 4 25 Fire 102 | 7 45 50 Melee 2 | . . 2 Ram . | . . . Kick . | . . . Crush 9 | 5 4 . Escape Stasis . | . . . Rewire . | . . . Trap . | . . . Miscellaneous . | . . . Route ------- -11/Scrapyard -10/Materials (discovered 3 exits: [*Mat x2] / *Sub) -10/Subcaves (discovered 3 exits: [*Mat x2] / [Rec]) History --------- Turn | Location | Event 10 | -11/Scrapyard | Discovered new exit (range 3) 106 | -11/Scrapyard | Entered Materials 301 | -10/Materials | Build established: Mutant 358 | -10/Materials | Discovered new exit (range 4) 825 | -10/Materials | Discovered new exit (range 8) 1149 | -10/Materials | Discovered new exit (range 7) 1248 | -10/Materials | Entered Subcaves 1874 | -10/Subcaves | Discovered new exit (range 12) 1934 | -10/Subcaves | Learned Materials garrison access intel 1945 | -10/Subcaves | Shifting Twisted Machinery released Spk. Treads 1996 | -10/Subcaves | Shifting Twisted Machinery released Sub. Monowheel 2143 | -10/Subcaves | Core integrity fell below 50% 2206 | -10/Subcaves | Learned Materials emergency access door positions 4136 | -10/Subcaves | Discovered new exit (range 12) 4150 | -10/Subcaves | Learned Materials terminal intel 4157 | -10/Subcaves | Shifting Twisted Machinery released Spk. Treads 4172 | -10/Subcaves | Shifting Twisted Machinery released Sub. Power Source 4337 | -10/Subcaves | Visited 4L-MR0's lab 4371 | -10/Subcaves | Found Rainbow Chip 4473 | -10/Subcaves | A swath of the cavern ceiling suddenly collapsed 6219 | -10/Subcaves | Core integrity fell below 20% 6480 | -10/Subcaves | Discovered new exit (range 5) 6547 | -10/Subcaves | Destroyed by G-34 Mercenary with Small Laser Last Messages --------------- 06249_ Acquired Lgt. Ion Engine. 06252_ Acquired Structural Scanner. 06256_ Acquired Sub. Shrapnel Launcher. 06257_ Subatomizers dissect the Sub. Laser. 06260_ Acquired Lgt. Treads. 06263_ Acquired Mak. Sword. 06269_ Acquired Sub. Laser. 06273_ Acquired Grenade Launcher. 06274_ Extracted 4 energy. 06277_ Acquired Hcp. Battery. 06280_ Acquired Mining Laser. 06281_ Acquired 18 matter. 06283_ Subatomizers dissect the Sub. Laser. 06284_ Acquired 21 matter. 06286_ Acquired 20 matter. 06292_ Acquired Grenade Launcher. 06295_ Subatomizers dissect the Sub. Laser. 06295_ Acquired Hcp. Matter Pod. 06299_ Acquired Sub. Laser. 06480_ EXIT=FOUND Map ----- +----------------------------------------------------+ | ?????????????????????????????????????????????????? | | ?????????????????????????????????????????????????? | | ?????????????????????????????????????????????????? | | ?????????????????????????????????????????????????? | | ?????????????????????????????????????????????????? | | ?????????????????????????????????????????????????? | | ?????????????????????????????????????????????????? | | ?????????????????????????????????????????????????? | | ?????????????????????????????????????????????????? | | ?????????????????????????????????????????????????? | | ?????????????????????????????????????????????????? | | ?????????????????????????????????????????????????? | | ?????????????????????????????????????????????????? | | ?????????????????????????????????????????????????? | | ?????????????????????????????????????????????????? | | ?????????????????????????????????????????????????? | | ?????????????????????????????????###?????????????? | | ????????????????????????????????# #?????????????? | | ??????????????????????????????## ??????????????? | | ????????????????????????????? g ???????????????? | | ????????????????????????????? ????????????????? | | ???????????????????????????? Y??????????????????? | | ????????????????????????#### ???????????????????? | | ???????????????????????? # ????????????????????? | | ???????????????????????## #?????????????????????? | | ?????????????? ???????# @ ##????????????????????? | | ?????????????# ???##### #????????????????????? | | ????????????? ??# ##????????????????????? | | ??????????? ?# ####??????????????????? | | ????????? ## #??????????????????? | | ????????? #??????????????????? | | ?????????# ##?????????????????? | | ?????????" ## ##????????????????? | | ????????? ?????## ###??????????????? | | ????????????????## #??????????????? | | ?????????????????## ## ##??????????????? | | ??????????????????###?## #???????????????? | | ??????????????????????## #### #???????????????? | | ??????????????????????# ##???###???????????????? | | ??????????????????????# ###????????????????????? | | ??????????????????????## ###????????????????????? | | ??????????????????????# ##????????????????????? | | ???####?????????????### ###????????????????????? | | ??#####??????? ????#### ###????????????????????? | | ?### ######## ?????##" ###????????????????????? | | ### ######## ?????##### ##????????????????????? | | ## ## ?????##### ###????????????????????? | | # ?????<# ## ####???????????????????? | | ?????###"# "######????????????????? | | ##????????### "" #####????????????????? | +----------------------------------------------------+ Best States ------------- Heat Dissipation 25 Energy Generation 10 Energy Capacity 250 Matter Stores 300 Matter Capacity 300 Sight Range 16 Terrain Scan Density 10 Armor Coverage 800 Evasion (%) 55 Recoil Reduction 2 Item Schematics ----------------- None Robot Schematics ------------------ None Fabricated ------------ Nothing Repaired ---------- Nothing Alien Tech Used ----------------- None Achievements -------------- None Challenges ------------ None Game ------ Seed NavigationAssemblyCutter Manual? 0 Play Time 00:44:28 Cumulative 1641.4 hours Start 2025.05.12 @ 21:36:16 End 2025.05.12 @ 22:39:35 Sessions 1 Manual Loads 0 Difficulty Rogue Special Mode None Game No. 437 Rogue 437 Adventurer 0 Explorer 0 Win Type - Total 98 Types 14/18/21/3/1/2/35/2/2/0 Lore% 75 Gallery% 86 Achievement% 89 Wizard Run 0 Options --------- Layout 2 ASCII 0 Keyboard 0 Movement Numpad Keybinds 0 Fullscreen 2 Font 32/Tamsyn Map View 50x44 Zoom Use 0% Tactical HUD 1 Map Filters NONE Filters NONE Steam 1 RUN: 2dcb829b-b1b0-4b51-8b85-ee9664c6f84e